Workbook

Sheet Sheet1
D2: =[1]SUM!D2 -> Bill of Quantity - Rev D
E3: INTERIOR INSTALLATION
A4: =[1]SUM!A4 -> UNDP'S OFFICE FIT OUT WORKS - ZONE 1 | F4: PACK 2
A5: =[1]SUM!A5 -> at Menara Thamrin, 9th Floor, Jakarta, Indonesia
F6: =[1]SUM!D6 -> 18th December 2019 | S6: COST
A7: No | B7: Description | C7: Specification & Finish | D7: Qty on BQ | E7: UoM | F7: Unit Price | G7: Price | H7: Remarks | S7: Qty | T7: Units | U7: Unit Price | V7: Price | X7: Margin
A8: II | B8: INTERIOR INSTALLATION ( ± 410 m2)
A10: A | B10: PREPARATION & ACCOMODATION
A11: 1 | B11: Project Management Service | D11: 1 | E11: ls | G11: =D11*F11 -> 0
A12: 2 | B12: Preparation & Accomodation | C12: site protection include temporary hoarding partition & door | D12: 1 | E12: ls | G12: =D12*F12 -> 0 | S12: =D12 -> 1 | T12: =E12 -> ls | V12: =S12*U12 -> 0 | X12: =G12-V12 -> 0 | Y12: =X12/V12 -> 
A13: 3 | B13: Demolition & Removal Works | C13: for gypsum partition, glass partition, ceiling, doors | D13: 1 | E13: ls | G13: =D13*F13 -> 0
B14: SUB TOTAL A | H14: =SUM(G11:G13) -> 0
A15: B | B15: PARTITION WORKS
A16: 1 | B16: Supply & install Two Sided Gypsum Wall Partition (with Sound Insulation) From floor to ceiling 2800 mmH | C16: Galvanized hollow steel frame 40x40 mm x 0,4 mmthk, Gypsum 12 mm thk ex. Jayaboard type Soundstop include corner bit Rockwool density 60 kg/m3 | D16: =63.36 -> 63.36 | E16: m2 | G16: =D16*F16 -> 0 | S16: 16.03 | T16: =E16 -> m2 | U16: 115000 | V16: =S16*U16 -> 1843450 | X16: =G16-V16 -> -1843450 | Y16: =X16/V16 -> -1
A17: 2 | B17: Supply & install Glass Partition w/ Frame Dim. 2800 mmH at Meeting Room | C17: 10mm thick, Tempered with aluminium frame ex. YKK or similar (size 3") fin. Silver color | D17: 29.67 | E17: m2 | G17: 0 | S17: 40 | T17: m2 | U17: =L17 -> 0 | V17: 0 | X17: 0 | Y17: =X17/V17 -> 
A18: 3 | B18: Supply & install Glass Partition Frameless Dim. 2800 mmH at Huddle Room & Breakout | C18: 12mm thick, Tempered with U channel | D18: 48.6 | E18: m2 | G18: 0
A19: 4 | B19: Supply & Install Sandblast Sticker for glass partition (one sided) | C19: print & cutting do not include visual graphic design | D19: 29.67 | E19: m2 | G19: 0 | S19: =D19 -> 29.67 | T19: m2 | V19: 0 | X19: 0
A20: 5 | B20: Supply & install Wall Paint | C20: ex. Dulux odorless | D20: 456 | E20: m2 | G20: 0 | S20: 27 | T20: m2 | U20: 40000 | V20: 1080000 | X20: -1080000 | Y20: -1
A21: 6 | B21: Supply & Install Skirting (bottom only) | C21: 50 mmH, MDF fin. Duco | D21: 386 | E21: m' | G21: 0 | S21: =D21 -> 386 | T21: m' | V21: 0 | X21: 0
A22: 7 | B22: Folding Partition at Meeting Rooms | C22: dim. 3300 mmL x 2800 mmH x 65 mm thk Movable wall include sound barrier finish with padded wall and fabrics ex : Ateja | D22: 1 | E22: set | G22: =F22*D22 -> 0
B23: SUB TOTAL B | H23: =SUM(G16:G22) -> 0
A24: C | B24: WALL FINISHES & WALL TREATMENT
A25: 1 | B25: Supply & Fabric Panelling at Meeting Room & Huddle Room | C25: Plywood for backing, include foam and fabric ex : Ateja | D25: =29.67+17.64 -> 47.31 | E25: m2 | G25: =D25*F25 -> 0
A26: 2 | B26: Supply & Install Glassboard, dim 1800mmH x 900mmL at Meeting Room | C26: Superwhite Glasstone + metal pins 5mm thickness | D26: 3.564 | E26: m2 | G26: =D26*F26 -> 0
A27: 3 | B27: Supply & Install Melaminto for Backing Graphic Poster | C27: Melaminto 3mm | D27: 37.95 | E27: m2 | G27: 0 | S27: 18 | T27: =E27 -> m2 | U27: 105000 | V27: =S27*U27 -> 1890000 | X27: =G27-V27 -> -1890000 | Y27: =X27/V27 -> -1
A28: 4 | B28: Supply & Install of Graphic Printing | C28: ex. Ritrama, laminating in doff Not include Visual Graphic Design fee | D28: 37.95 | E28: m2 | G28: 0 | S28: 18 | T28: m2 | U28: 105000 | V28: 1890000 | X28: -1890000 | Y28: -1
A29: 5 | B29: Supply & Install wall synthetic grass at Pantry | C29: synthetic plant with plywood backing | D29: 10 | E29: m2 | G29: 0 | T29: m2
A30: 6 | B30: Supply & Install Logo | C30: use Existing | S30: 18 | T30: 0 | U30: 105000 | V30: =S30*U30 -> 1890000 | X30: =G30-V30 -> -1890000 | Y30: =X30/V30 -> -1
B31: SUB TOTAL C | H31: =SUM(G25:G30) -> 0
A32: D | B32: DOORS & WINDOWS
A33: 1 | B33: Supply & install Glass Door at Meeting Room | C33: dim. 900 mmL x 2400 mmH Single swing door 12 mm thickness, tempered glass including floor hinges ex. Dorma BTS 84 pull handle 600 mmH lockset ex. Dekson door stopper (if necessary) | D33: 2 | E33: Unit(s) | G33: =D33*F33 -> 0 | S33: 4 | T33: =E33 -> Unit(s) | U33: 6000000 | V33: =S33*U33 -> 24000000 | X33: =O33-V33 -> -24000000
A34: 2 | B34: Supply & install Glass Door at Huddle Room | C34: dim. 700 mmL x 2400 mmH Single swing door 12 mm thickness, tempered glass including floor hinges ex. Dorma BTS 84 pull handle 600 mmH lockset ex. Dekson door stopper (if necessary) | D34: 2 | E34: Unit(s) | G34: =D34*F34 -> 0 | S34: 4 | T34: =E34 -> Unit(s) | U34: 6000000 | V34: 24000000 | X34: =O34-V34 -> -24000000
B35: SUB TOTAL D | H35: =SUM(G33:G33) -> 0
A36: E | B36: CEILING WORKS
A37: 1 | B37: Supply & install Acoustic Ceiling due to new layout | C37: Accoustic Panel 600x600x15mm include frame and wall angle ex: AMF Thermatex | D37: 44 | E37: m2 | G37: =D37*F37 -> 0 | S37: 5 | T37: =E37 -> m2 | U37: 65000 | V37: =S37*U37 -> 325000 | X37: =G37-V37 -> -325000 | Y37: =X37/V37 -> -1
A38: 2 | B38: Supply & install Flat Gypsum Ceiling at Corridor & Meeting Room | C38: Gypsum 9 mm thk ex. Jayaboard, Hollow steel frame 4x4cm 0,4 mm thk include shadowline | D38: =96.66+33.4 -> 130.06 | E38: m2 | G38: 0 | S38: 5.41 | T38: m2 | U38: 115000 | V38: 622150 | X38: -622150 | Y38: -1
A39: 3 | B39: Supply & install Drop Gypsum Ceiling at Corridor & Meeting Room | C39: Gypsum 9 mm thk ex. Jayaboard, Hollow steel frame 4x4cm 0,4 mm thk | D39: 50 | E39: m' | G39: 0 | S39: 5.41 | T39: m' | U39: 115000 | V39: 622150 | X39: -622150 | Y39: -1
A40: 4 | B40: Supply & install Ceiling Paint | C40: ex. Dulux odorless | D40: =D38+(D39*0.2) -> 140.06 | E40: m2 | G40: 0 | S40: 6.5 | T40: m2 | U40: 40000 | V40: 260000 | X40: -260000 | Y40: -1
A41: 5 | B41: Supply & install Manhole dim. 600 x 600 mm | D41: 2 | E41: Unit(s) | G41: 0 | S41: 6.5 | T41: Unit(s) | U41: 40000 | V41: 260000 | X41: -260000 | Y41: -1
B42: SUB TOTAL E | H42: =SUM(G37:G41) -> 0
A43: F | B43: OTHER ACCESSORIES
A44: 1 | B44: Any variation items that might possibly happen beyond our control will only be accepted after agreement between Client and Vendor | C44: 10% from total Pack 2 | G44: =SUM(G10:G42)*0.1 -> 0 | S44: 6.5 | T44: =E44 -> 0 | U44: 40000 | V44: =S44*U44 -> 260000 | X44: =G44-V44 -> -260000 | Y44: =X44/V44 -> -1
B45: SUB TOTAL F | H45: =SUM(G43:G44) -> 0
B47: GRAND TOTAL: A+B+C+D+E+F | G47: =SUM(G8:G45) -> 0 | S47: =O47/145 -> 0 | V47: =SUM(V8:V44) -> 58942750 | X47: =SUM(X8:X44) -> -58942750
B51: Payment Term | C51: Percentage
B52: Down Payment | C52: 0.5 | D52: =C52*G47 -> 0
B53: 2nd Term Payment | C53: 0.45 | D53: =C53*G47 -> 0
B54: Retention (1 month) | C54: 0.05 | D54: =C54*G47 -> 0
